[Event "Titled Tuesday Blitz March 07 Late 2023"]
[White "Ramirez, Maria Eugenia"]
[Black "Kraus, Tomas"]
[WhiteFideId "3301680"]
[BlackFideId "331708"]
[WhiteElo "1842"]
[BlackElo "2389"]
[Result "1-0"]
[Round "06"]
[TimeControl "180+2"]
[Date "2023.03.07"]
[WhiteClock "0:00:15"]
[BlackClock "0:00:11"]

1. e4 {[%clk 0:03:00]}  e6 {[%clk 0:03:00]} 2. d4 {[%clk 0:03:00]}  d5 {[%clk 0:03:01]} 3. exd5 {[%clk 0:03:01]}  exd5 {[%clk 0:03:02]} 4. c4 {[%clk 0:03:01]}  Nf6 {[%clk 0:03:01]} 5. Nf3 {[%clk 0:03:01]}  Bd6 {[%clk 0:03:01]} 6. Nc3 {[%clk 0:03:00]}  c6 {[%clk 0:03:00]} 7. cxd5 {[%clk 0:02:59]}  cxd5 {[%clk 0:03:00]} 8. Bd3 {[%clk 0:02:59]}  O-O {[%clk 0:02:59]} 9. O-O {[%clk 0:02:59]}  Nc6 {[%clk 0:02:59]} 10. h3 {[%clk 0:02:58]}  h6 {[%clk 0:02:54]} 11. Re1 {[%clk 0:02:57]}  Be6 {[%clk 0:02:52]} 12. Be3 {[%clk 0:02:54]}  Qd7 {[%clk 0:02:52]} 13. Rc1 {[%clk 0:02:51]}  Bf5 {[%clk 0:02:35]} 14. Qd2 {[%clk 0:02:42]}  Rfe8 {[%clk 0:02:32]} 15. Bxf5 {[%clk 0:02:23]}  Qxf5 {[%clk 0:02:32]} 16. Nh4 {[%clk 0:02:21]}  Qh5 {[%clk 0:02:24]} 17. Nf3 {[%clk 0:02:20]}  Rac8 {[%clk 0:02:15]} 18. a3 {[%clk 0:02:14]}  Qf5 {[%clk 0:02:11]} 19. Qc2 {[%clk 0:02:03]}  Ne4 {[%clk 0:01:58]} 20. Nb5 {[%clk 0:01:48]}  Bb8 {[%clk 0:01:46]} 21. Qb3 {[%clk 0:01:42]}  Ng5 {[%clk 0:01:35]} 22. Nxg5 {[%clk 0:01:29]}  hxg5 {[%clk 0:01:34]} 23. Nc3 {[%clk 0:01:29]}  Rcd8 {[%clk 0:01:29]} 24. Qxb7 {[%clk 0:01:28]}  Na5 {[%clk 0:01:24]} 25. Qb5 {[%clk 0:01:25]}  Nc4 {[%clk 0:01:23]} 26. Nd1 {[%clk 0:01:11]}  g4 {[%clk 0:01:22]} 27. hxg4 {[%clk 0:01:07]}  Qxg4 {[%clk 0:01:22]} 28. b3 {[%clk 0:01:01]}  Nxe3 {[%clk 0:01:13]} 29. Nxe3 {[%clk 0:01:00]}  Qh4 {[%clk 0:01:12]} 30. Qd3 {[%clk 0:00:48]}  Qh2+ {[%clk 0:00:41]} 31. Kf1 {[%clk 0:00:48]}  Qh1+ {[%clk 0:00:41]} 32. Ke2 {[%clk 0:00:47]}  Qxg2 {[%clk 0:00:42]} 33. Rh1 {[%clk 0:00:40]}  Qe4 {[%clk 0:00:40]} 34. Qxe4 {[%clk 0:00:37]}  Rxe4 {[%clk 0:00:41]} 35. Kd3 {[%clk 0:00:36]}  Bf4 {[%clk 0:00:38]} 36. Rh3 {[%clk 0:00:31]}  g6 {[%clk 0:00:37]} 37. Rc5 {[%clk 0:00:30]}  Bxe3 {[%clk 0:00:34]} 38. Rxe3 {[%clk 0:00:30]}  Rxe3+ {[%clk 0:00:33]} 39. Kxe3 {[%clk 0:00:27]}  Kg7 {[%clk 0:00:31]} 40. Kf4 {[%clk 0:00:26]}  Kf6 {[%clk 0:00:31]} 41. Rc6+ {[%clk 0:00:25]}  Ke7 {[%clk 0:00:27]} 42. Ke5 {[%clk 0:00:23]}  f6+ {[%clk 0:00:26]} 43. Rxf6 {[%clk 0:00:22]}  Rb8 {[%clk 0:00:18]} 44. b4 {[%clk 0:00:20]}  Rg8 {[%clk 0:00:15]} 45. Ra6 {[%clk 0:00:18]}  Ra8 {[%clk 0:00:13]} 46. Kxd5 {[%clk 0:00:17]}  Kd7 {[%clk 0:00:12]} 47. Rxg6 {[%clk 0:00:17]}  Kc7 {[%clk 0:00:12]} 48. Kc5 {[%clk 0:00:15]}  a5 {[%clk 0:00:11]} 49. b5 {[%clk 0:00:15]}  a4 {[%clk 0:00:12]} 50. b6+ {[%clk 0:00:14]}  Kb7 {[%clk 0:00:12]} 51. Rg7+ {[%clk 0:00:14]}  Ka6 {[%clk 0:00:11]} 52. Ra7+ {[%clk 0:00:14]}  Rxa7 {[%clk 0:00:11]} 53. bxa7 {[%clk 0:00:14]}  Kxa7 {[%clk 0:00:12]} 54. Kc6 {[%clk 0:00:15]}  Ka6 {[%clk 0:00:12]} 55. d5 {[%clk 0:00:15]}  Ka5 {[%clk 0:00:13]} 56. d6 {[%clk 0:00:15]}  Ka6 {[%clk 0:00:12]} 57. d7 {[%clk 0:00:15]}  Ka5 {[%clk 0:00:13]} 58. d8=Q+ {[%clk 0:00:15]}  Ka6 {[%clk 0:00:11]} 59. Qa8# {[%clk 0:00:15]} 1-0


[Site "https://www.chess.com"]

[Event "Titled Tuesday Blitz March 07 Late 2023"]
[White "Stead, Kerry"]
[Black "Hoffmann, Asa"]
[WhiteFideId "3202577"]
[BlackFideId "2001470"]
[WhiteElo "1997"]
[BlackElo "2117"]
[Result "0-1"]
[Round "06"]
[TimeControl "180+2"]
[Date "2023.03.07"]
[WhiteClock "0:01:38"]
[BlackClock "0:01:17"]

1. d4 {[%clk 0:02:59]}  Nf6 {[%clk 0:02:57]} 2. f3 {[%clk 0:02:59]}  d5 {[%clk 0:02:55]} 3. e4 {[%clk 0:02:59]}  dxe4 {[%clk 0:02:55]} 4. Nc3 {[%clk 0:02:59]}  exf3 {[%clk 0:02:52]} 5. Nxf3 {[%clk 0:03:00]}  Bf5 {[%clk 0:02:51]} 6. Bc4 {[%clk 0:02:57]}  e6 {[%clk 0:02:51]} 7. O-O {[%clk 0:02:58]}  Nbd7 {[%clk 0:02:50]} 8. Bg5 {[%clk 0:02:57]}  Be7 {[%clk 0:02:49]} 9. Qd2 {[%clk 0:02:57]}  O-O {[%clk 0:02:47]} 10. Rae1 {[%clk 0:02:56]}  c6 {[%clk 0:02:45]} 11. Qf4 {[%clk 0:02:56]}  Bg6 {[%clk 0:02:43]} 12. Ne5 {[%clk 0:02:46]}  Nxe5 {[%clk 0:02:40]} 13. dxe5 {[%clk 0:02:42]}  Nd5 {[%clk 0:02:40]} 14. Bxe7 {[%clk 0:02:42]}  Qxe7 {[%clk 0:02:35]} 15. Nxd5 {[%clk 0:02:38]}  cxd5 {[%clk 0:02:34]} 16. Bb3 {[%clk 0:02:38]}  a5 {[%clk 0:02:27]} 17. c3 {[%clk 0:02:36]}  a4 {[%clk 0:02:26]} 18. Bd1 {[%clk 0:02:32]}  a3 {[%clk 0:02:25]} 19. b3 {[%clk 0:02:32]}  Qc5+ {[%clk 0:02:25]} 20. Qe3 {[%clk 0:02:31]}  Rfc8 {[%clk 0:02:24]} 21. Rf3 {[%clk 0:02:29]}  Rc7 {[%clk 0:02:12]} 22. Qxc5 {[%clk 0:02:23]}  Rxc5 {[%clk 0:02:12]} 23. Be2 {[%clk 0:02:17]}  Rac8 {[%clk 0:02:09]} 24. c4 {[%clk 0:02:13]}  d4 {[%clk 0:02:06]} 25. Bd3 {[%clk 0:02:12]}  Rd8 {[%clk 0:01:46]} 26. Kf2 {[%clk 0:02:03]}  Kf8 {[%clk 0:01:43]} 27. Bxg6 {[%clk 0:02:01]}  hxg6 {[%clk 0:01:43]} 28. Kg3 {[%clk 0:01:54]}  b5 {[%clk 0:01:42]} 29. cxb5 {[%clk 0:01:53]}  Rxb5 {[%clk 0:01:42]} 30. Rd3 {[%clk 0:01:52]}  Rc5 {[%clk 0:01:34]} 31. Kf4 {[%clk 0:01:51]}  Rc2 {[%clk 0:01:33]} 32. Ke4 {[%clk 0:01:35]}  Rxa2 {[%clk 0:01:31]} 33. Rxd4 {[%clk 0:01:35]}  Rxd4+ {[%clk 0:01:30]} 34. Kxd4 {[%clk 0:01:36]}  Rxg2 {[%clk 0:01:29]} 35. Ra1 {[%clk 0:01:35]}  a2 {[%clk 0:01:29]} 36. b4 {[%clk 0:01:34]}  Ke8 {[%clk 0:01:29]} 37. Kc3 {[%clk 0:01:33]}  Kd7 {[%clk 0:01:29]} 38. Kb3 {[%clk 0:01:34]}  Rxh2 {[%clk 0:01:27]} 39. Rxa2 {[%clk 0:01:34]}  Rxa2 {[%clk 0:01:23]} 40. Kxa2 {[%clk 0:01:35]}  Kc6 {[%clk 0:01:23]} 41. Kb3 {[%clk 0:01:35]}  Kb5 {[%clk 0:01:22]} 42. Kc3 {[%clk 0:01:35]}  f6 {[%clk 0:01:22]} 43. exf6 {[%clk 0:01:35]}  gxf6 {[%clk 0:01:22]} 44. Kb3 {[%clk 0:01:36]}  g5 {[%clk 0:01:21]} 45. Kc3 {[%clk 0:01:36]}  f5 {[%clk 0:01:21]} 46. Kd4 {[%clk 0:01:36]}  Kxb4 {[%clk 0:01:20]} 47. Kd3 {[%clk 0:01:37]}  e5 {[%clk 0:01:20]} 48. Ke3 {[%clk 0:01:37]}  Kc3 {[%clk 0:01:18]} 49. Ke2 {[%clk 0:01:38]}  g4 {[%clk 0:01:17]} 50. Ke3 {[%clk 0:01:38]}  f4+ {[%clk 0:01:17]} 0-1


[Site "https://www.chess.com"]

[Event "Titled Tuesday Blitz March 07 Late 2023"]
[White "Beukes, Dante M"]
[Black "Souza, Gustavo Horokoski De"]
[WhiteFideId "15200540"]
[BlackFideId "2146584"]
[WhiteElo "2199"]
[BlackElo "1859"]
[Result "1-0"]
[Round "06"]
[TimeControl "180+2"]
[Date "2023.03.07"]
[WhiteClock "0:00:15"]
[BlackClock "0:01:04"]

1. e4 {[%clk 0:03:00]}  e5 {[%clk 0:02:48]} 2. Nf3 {[%clk 0:03:00]}  Nc6 {[%clk 0:02:46]} 3. Bb5 {[%clk 0:02:59]}  d6 {[%clk 0:02:44]} 4. d4 {[%clk 0:02:58]}  exd4 {[%clk 0:02:38]} 5. Nxd4 {[%clk 0:02:57]}  Bd7 {[%clk 0:02:36]} 6. Bxc6 {[%clk 0:02:58]}  Bxc6 {[%clk 0:02:35]} 7. Nc3 {[%clk 0:02:58]}  Nf6 {[%clk 0:02:30]} 8. O-O {[%clk 0:02:54]}  g6 {[%clk 0:02:27]} 9. Re1 {[%clk 0:02:43]}  Bg7 {[%clk 0:02:15]} 10. e5 {[%clk 0:02:43]}  dxe5 {[%clk 0:02:15]} 11. Rxe5+ {[%clk 0:02:43]}  Kf8 {[%clk 0:02:16]} 12. Bg5 {[%clk 0:02:40]}  h6 {[%clk 0:02:14]} 13. Bh4 {[%clk 0:02:24]}  g5 {[%clk 0:02:13]} 14. Bg3 {[%clk 0:02:05]}  Ne8 {[%clk 0:02:04]} 15. Nxc6 {[%clk 0:01:47]}  bxc6 {[%clk 0:01:55]} 16. Rc5 {[%clk 0:01:40]}  Nd6 {[%clk 0:01:42]} 17. Rxc6 {[%clk 0:01:36]}  Qe8 {[%clk 0:01:30]} 18. Bxd6+ {[%clk 0:01:34]}  cxd6 {[%clk 0:01:29]} 19. Qxd6+ {[%clk 0:01:34]}  Kg8 {[%clk 0:01:29]} 20. Nd5 {[%clk 0:01:32]}  Rd8 {[%clk 0:01:19]} 21. Ne7+ {[%clk 0:01:08]}  Kf8 {[%clk 0:01:18]} 22. Ng6+ {[%clk 0:00:41]}  Kg8 {[%clk 0:01:15]} 23. Rc8 {[%clk 0:00:15]}  Rxc8 {[%clk 0:01:04]} 24. Ne7+ {[%clk 0:00:15]}  Kh7 {[%clk 0:01:04]} 25. Qd3+ {[%clk 0:00:15]} 1-0


[Site "https://www.chess.com"]

[Event "Titled Tuesday Blitz March 07 Late 2023"]
[White "Kielinkei"]
[Black "Vargas Pereda, Jesus Manue"]
[BlackFideId "5115710"]
[WhiteElo "2410"]
[BlackElo "1914"]
[Result "0-1"]
[Round "06"]
[TimeControl "180+2"]
[Date "2023.03.07"]
[WhiteClock "0:00:02"]
[BlackClock "0:01:02"]

1. e4 {[%clk 0:03:00]}  c5 {[%clk 0:02:59]} 2. Nc3 {[%clk 0:02:57]}  Nc6 {[%clk 0:03:00]} 3. g3 {[%clk 0:02:56]}  d6 {[%clk 0:02:59]} 4. Bg2 {[%clk 0:02:56]}  Nf6 {[%clk 0:02:59]} 5. Nge2 {[%clk 0:02:56]}  e6 {[%clk 0:03:00]} 6. O-O {[%clk 0:02:53]}  Be7 {[%clk 0:03:00]} 7. d4 {[%clk 0:02:54]}  cxd4 {[%clk 0:03:00]} 8. Nxd4 {[%clk 0:02:54]}  a6 {[%clk 0:03:01]} 9. Be3 {[%clk 0:02:54]}  Qc7 {[%clk 0:03:00]} 10. f4 {[%clk 0:02:39]}  O-O {[%clk 0:02:59]} 11. h3 {[%clk 0:02:28]}  Rb8 {[%clk 0:02:59]} 12. g4 {[%clk 0:02:16]}  Re8 {[%clk 0:02:50]} 13. g5 {[%clk 0:02:14]}  Nd7 {[%clk 0:02:50]} 14. f5 {[%clk 0:02:05]}  Nxd4 {[%clk 0:02:48]} 15. Qxd4 {[%clk 0:02:02]}  e5 {[%clk 0:02:31]} 16. Qd2 {[%clk 0:01:57]}  Bf8 {[%clk 0:02:30]} 17. Nd5 {[%clk 0:01:55]}  Qd8 {[%clk 0:02:21]} 18. f6 {[%clk 0:01:53]}  g6 {[%clk 0:02:18]} 19. Qf2 {[%clk 0:01:43]}  b5 {[%clk 0:02:12]} 20. Rad1 {[%clk 0:01:28]}  Bb7 {[%clk 0:02:07]} 21. c3 {[%clk 0:01:12]}  Bxd5 {[%clk 0:02:04]} 22. Rxd5 {[%clk 0:01:12]}  Nb6 {[%clk 0:02:04]} 23. Rdd1 {[%clk 0:01:10]}  Nc4 {[%clk 0:01:59]} 24. Bc1 {[%clk 0:01:06]}  Qc7 {[%clk 0:01:51]} 25. Kh1 {[%clk 0:01:02]}  b4 {[%clk 0:01:41]} 26. b3 {[%clk 0:00:59]}  Nb6 {[%clk 0:01:35]} 27. c4 {[%clk 0:00:59]}  Nd7 {[%clk 0:01:35]} 28. Be3 {[%clk 0:00:49]}  a5 {[%clk 0:01:34]} 29. Rd5 {[%clk 0:00:45]}  a4 {[%clk 0:01:34]} 30. Rfd1 {[%clk 0:00:40]}  axb3 {[%clk 0:01:33]} 31. axb3 {[%clk 0:00:41]}  Ra8 {[%clk 0:01:27]} 32. Qb2 {[%clk 0:00:22]}  Ra3 {[%clk 0:01:20]} 33. Rb5 {[%clk 0:00:20]}  Nc5 {[%clk 0:01:15]} 34. Rxb4 {[%clk 0:00:16]}  Rea8 {[%clk 0:01:14]} 35. Qc3 {[%clk 0:00:06]}  Ra2 {[%clk 0:01:14]} 36. Rd2 {[%clk 0:00:06]}  Ra1+ {[%clk 0:01:13]} 37. Kh2 {[%clk 0:00:06]}  Re1 {[%clk 0:01:10]} 38. Bf2 {[%clk 0:00:06]}  Nxe4 {[%clk 0:01:08]} 39. Bxe4 {[%clk 0:00:04]}  Rxe4 {[%clk 0:01:08]} 40. Qf3 {[%clk 0:00:04]}  Qc6 {[%clk 0:01:06]} 41. c5 {[%clk 0:00:05]}  d5 {[%clk 0:01:05]} 42. Rxe4 {[%clk 0:00:03]}  dxe4 {[%clk 0:01:05]} 43. Qe3 {[%clk 0:00:03]}  Rc8 {[%clk 0:01:03]} 44. Re2 {[%clk 0:00:02]}  Bxc5 {[%clk 0:01:02]} 0-1


[Site "https://www.chess.com"]

[Event "Titled Tuesday Blitz March 07 Late 2023"]
[White "Fernandez Garcia, Gumersindo"]
[Black "mohsengabr2002"]
[WhiteFideId "24516740"]
[WhiteElo "2093"]
[BlackElo "2307"]
[Result "0-1"]
[Round "06"]
[TimeControl "180+2"]
[Date "2023.03.07"]
[WhiteClock "0:00:20"]
[BlackClock "0:00:50"]

1. e4 {[%clk 0:03:00]}  g6 {[%clk 0:02:59]} 2. d4 {[%clk 0:03:01]}  Bg7 {[%clk 0:02:59]} 3. Nc3 {[%clk 0:03:01]}  d6 {[%clk 0:02:59]} 4. Nf3 {[%clk 0:03:00]}  a6 {[%clk 0:02:59]} 5. Bc4 {[%clk 0:03:01]}  b5 {[%clk 0:02:59]} 6. Bxf7+ {[%clk 0:02:48]}  Kxf7 {[%clk 0:02:58]} 7. Ng5+ {[%clk 0:02:48]}  Ke8 {[%clk 0:02:56]} 8. e5 {[%clk 0:02:48]}  h6 {[%clk 0:02:47]} 9. Qf3 {[%clk 0:02:46]}  hxg5 {[%clk 0:02:43]} 10. Qxa8 {[%clk 0:02:46]}  Nd7 {[%clk 0:02:22]} 11. e6 {[%clk 0:02:41]}  Nb6 {[%clk 0:02:22]} 12. Qc6+ {[%clk 0:02:41]}  Kf8 {[%clk 0:02:20]} 13. Bxg5 {[%clk 0:02:33]}  Bxe6 {[%clk 0:02:16]} 14. O-O-O {[%clk 0:02:32]}  Bh6 {[%clk 0:02:13]} 15. Bxh6+ {[%clk 0:02:30]}  Nxh6 {[%clk 0:02:13]} 16. Qf3+ {[%clk 0:02:26]}  Kg7 {[%clk 0:02:11]} 17. d5 {[%clk 0:02:25]}  Bf7 {[%clk 0:02:07]} 18. g4 {[%clk 0:02:06]}  b4 {[%clk 0:01:54]} 19. Ne2 {[%clk 0:02:02]}  Qa8 {[%clk 0:01:47]} 20. Nf4 {[%clk 0:01:50]}  e5 {[%clk 0:01:38]} 21. Nh5+ {[%clk 0:01:11]}  gxh5 {[%clk 0:01:37]} 22. g5 {[%clk 0:01:11]}  Ng4 {[%clk 0:01:36]} 23. Rhg1 {[%clk 0:00:59]}  Bxd5 {[%clk 0:01:35]} 24. Qf5 {[%clk 0:00:58]}  Rf8 {[%clk 0:01:25]} 25. Qd3 {[%clk 0:00:50]}  Be4 {[%clk 0:01:24]} 26. Qh3 {[%clk 0:00:40]}  Bg6 {[%clk 0:01:19]} 27. Rd2 {[%clk 0:00:36]}  Nc4 {[%clk 0:01:14]} 28. Re2 {[%clk 0:00:35]}  Qf3 {[%clk 0:01:13]} 29. Qf1 {[%clk 0:00:31]}  Nxf2 {[%clk 0:00:57]} 30. b3 {[%clk 0:00:20]}  Nd3+ {[%clk 0:00:53]} 31. cxd3 {[%clk 0:00:19]}  Qxf1+ {[%clk 0:00:52]} 32. Rxf1 {[%clk 0:00:19]}  Rxf1+ {[%clk 0:00:52]} 33. Kc2 {[%clk 0:00:20]}  Na3+ {[%clk 0:00:50]} 0-1


[Site "https://www.chess.com"]

[Event "Titled Tuesday Blitz March 07 Late 2023"]
[White "Graif, William"]
[Black "Skaric, Djuro"]
[WhiteFideId "2609835"]
[BlackFideId "934569"]
[WhiteElo "2205"]
[BlackElo "2282"]
[Result "1-0"]
[Round "06"]
[TimeControl "180+2"]
[Date "2023.03.07"]
[WhiteClock "0:00:13"]
[BlackClock "0:00:17"]

1. e4 {[%clk 0:02:54]}  d6 {[%clk 0:03:00]} 2. Nc3 {[%clk 0:02:53]}  g6 {[%clk 0:03:01]} 3. f4 {[%clk 0:02:52]}  Nc6 {[%clk 0:02:59]} 4. Bc4 {[%clk 0:02:39]}  Bg7 {[%clk 0:02:59]} 5. a3 {[%clk 0:02:38]}  a6 {[%clk 0:02:59]} 6. d3 {[%clk 0:02:37]}  Nf6 {[%clk 0:02:59]} 7. Nf3 {[%clk 0:02:27]}  Bg4 {[%clk 0:02:59]} 8. Be3 {[%clk 0:02:27]}  b5 {[%clk 0:02:55]} 9. Ba2 {[%clk 0:02:24]}  b4 {[%clk 0:02:55]} 10. axb4 {[%clk 0:02:19]}  Nxb4 {[%clk 0:02:54]} 11. Bb3 {[%clk 0:02:19]}  O-O {[%clk 0:02:53]} 12. O-O {[%clk 0:02:18]}  Nh5 {[%clk 0:02:46]} 13. f5 {[%clk 0:02:04]}  e6 {[%clk 0:02:28]} 14. h3 {[%clk 0:01:55]}  Bxf3 {[%clk 0:02:28]} 15. Qxf3 {[%clk 0:01:56]}  d5 {[%clk 0:02:25]} 16. Bc5 {[%clk 0:01:43]}  dxe4 {[%clk 0:02:21]} 17. Qxe4 {[%clk 0:01:30]}  Ng3 {[%clk 0:02:00]} 18. Qxb4 {[%clk 0:01:28]}  Nxf1 {[%clk 0:01:59]} 19. fxe6 {[%clk 0:01:15]}  Nd2 {[%clk 0:01:48]} 20. e7 {[%clk 0:01:14]}  Qd7 {[%clk 0:01:36]} 21. exf8=Q+ {[%clk 0:01:09]}  Bxf8 {[%clk 0:01:36]} 22. Bxf8 {[%clk 0:01:06]}  Rxf8 {[%clk 0:01:36]} 23. Ba4 {[%clk 0:00:51]}  Qf5 {[%clk 0:01:29]} 24. Rd1 {[%clk 0:00:44]}  Qg5 {[%clk 0:01:25]} 25. Kh1 {[%clk 0:00:37]}  Rd8 {[%clk 0:01:14]} 26. Na2 {[%clk 0:00:32]}  Nf3 {[%clk 0:00:58]} 27. gxf3 {[%clk 0:00:31]}  f5 {[%clk 0:00:55]} 28. Bb3+ {[%clk 0:00:29]}  Kg7 {[%clk 0:00:54]} 29. Qc3+ {[%clk 0:00:28]}  Kf8 {[%clk 0:00:51]} 30. Qh8+ {[%clk 0:00:25]}  Ke7 {[%clk 0:00:50]} 31. Re1+ {[%clk 0:00:23]}  Kd6 {[%clk 0:00:50]} 32. Re6+ {[%clk 0:00:18]}  Kd7 {[%clk 0:00:51]} 33. Qxh7+ {[%clk 0:00:14]}  Kc8 {[%clk 0:00:51]} 34. Re2 {[%clk 0:00:11]}  Qg3 {[%clk 0:00:50]} 35. Be6+ {[%clk 0:00:09]}  Kb8 {[%clk 0:00:49]} 36. Rg2 {[%clk 0:00:07]}  Qxf3 {[%clk 0:00:49]} 37. Qxg6 {[%clk 0:00:06]}  Rh8 {[%clk 0:00:44]} 38. Qxf5 {[%clk 0:00:03]}  Rxh3+ {[%clk 0:00:42]} 39. Qxh3 {[%clk 0:00:03]}  Qf1+ {[%clk 0:00:42]} 40. Kh2 {[%clk 0:00:04]}  Qf4+ {[%clk 0:00:42]} 41. Qg3 {[%clk 0:00:04]}  Qh6+ {[%clk 0:00:42]} 42. Bh3 {[%clk 0:00:05]}  Qc6 {[%clk 0:00:41]} 43. Qg8+ {[%clk 0:00:06]}  Ka7 {[%clk 0:00:41]} 44. Qg3 {[%clk 0:00:06]}  a5 {[%clk 0:00:40]} 45. Nc3 {[%clk 0:00:07]}  Kb6 {[%clk 0:00:39]} 46. Qf2+ {[%clk 0:00:08]}  Kb7 {[%clk 0:00:37]} 47. Ne4 {[%clk 0:00:09]}  Qd5 {[%clk 0:00:35]} 48. b3 {[%clk 0:00:10]}  Qe5+ {[%clk 0:00:35]} 49. Rg3 {[%clk 0:00:11]}  a4 {[%clk 0:00:35]} 50. Bg2 {[%clk 0:00:12]}  a3 {[%clk 0:00:35]} 51. Nc3+ {[%clk 0:00:12]}  Ka6 {[%clk 0:00:34]} 52. Qe2 {[%clk 0:00:10]}  Qd4 {[%clk 0:00:27]} 53. Rg4 {[%clk 0:00:09]}  Qxc3 {[%clk 0:00:25]} 54. d4+ {[%clk 0:00:09]}  Kb6 {[%clk 0:00:23]} 55. Qe4 {[%clk 0:00:10]}  a2 {[%clk 0:00:19]} 56. Qb7+ {[%clk 0:00:09]}  Ka5 {[%clk 0:00:20]} 57. Rg5+ {[%clk 0:00:10]}  c5 {[%clk 0:00:17]} 58. Rxc5+ {[%clk 0:00:10]}  Qxc5 {[%clk 0:00:17]} 59. dxc5 {[%clk 0:00:11]}  a1=Q {[%clk 0:00:17]} 60. Qa7+ {[%clk 0:00:11]}  Kb4 {[%clk 0:00:18]} 61. Qxa1 {[%clk 0:00:12]}  Kxc5 {[%clk 0:00:17]} 62. c3 {[%clk 0:00:13]} 1-0


[Site "https://www.chess.com"]

[Event "Titled Tuesday Blitz March 07 Late 2023"]
[White "Figorito, Nick"]
[Black "Floresvillar Gonzalez, Luis Migu"]
[WhiteFideId "30923689"]
[BlackFideId "5100542"]
[WhiteElo "2378"]
[BlackElo "2040"]
[Result "1-0"]
[Round "06"]
[TimeControl "180+2"]
[Date "2023.03.07"]
[WhiteClock "0:00:18"]
[BlackClock "0:00:04"]

1. Nf3 {[%clk 0:03:00]}  d5 {[%clk 0:02:56]} 2. g3 {[%clk 0:03:01]}  c6 {[%clk 0:02:55]} 3. Bg2 {[%clk 0:03:01]}  Bf5 {[%clk 0:02:55]} 4. O-O {[%clk 0:03:02]}  Nd7 {[%clk 0:02:53]} 5. c4 {[%clk 0:03:02]}  e6 {[%clk 0:02:53]} 6. cxd5 {[%clk 0:03:02]}  exd5 {[%clk 0:02:53]} 7. d4 {[%clk 0:03:03]}  Ngf6 {[%clk 0:02:52]} 8. Nc3 {[%clk 0:03:04]}  Bd6 {[%clk 0:02:52]} 9. Bf4 {[%clk 0:03:02]}  Bxf4 {[%clk 0:02:50]} 10. gxf4 {[%clk 0:03:03]}  O-O {[%clk 0:02:49]} 11. Ne5 {[%clk 0:03:03]}  Ne4 {[%clk 0:02:47]} 12. Nxe4 {[%clk 0:03:03]}  Bxe4 {[%clk 0:02:46]} 13. Bxe4 {[%clk 0:03:00]}  dxe4 {[%clk 0:02:46]} 14. Qb3 {[%clk 0:02:48]}  Nb6 {[%clk 0:02:38]} 15. e3 {[%clk 0:02:44]}  Qd5 {[%clk 0:02:28]} 16. Qxd5 {[%clk 0:02:35]}  Nxd5 {[%clk 0:02:22]} 17. Nd7 {[%clk 0:02:29]}  Rfe8 {[%clk 0:02:14]} 18. Rac1 {[%clk 0:02:21]}  Re7 {[%clk 0:02:14]} 19. Nc5 {[%clk 0:02:21]}  f5 {[%clk 0:02:04]} 20. a4 {[%clk 0:02:16]}  a5 {[%clk 0:02:03]} 21. h4 {[%clk 0:02:07]}  Rf8 {[%clk 0:01:54]} 22. Kh2 {[%clk 0:02:06]}  Rf6 {[%clk 0:01:53]} 23. Rg1 {[%clk 0:02:06]}  Rh6 {[%clk 0:01:50]} 24. Kg3 {[%clk 0:02:04]}  Rg6+ {[%clk 0:01:50]} 25. Kh3 {[%clk 0:02:04]}  Rxg1 {[%clk 0:01:47]} 26. Rxg1 {[%clk 0:02:05]}  Kf7 {[%clk 0:01:44]} 27. h5 {[%clk 0:01:55]}  Nf6 {[%clk 0:01:31]} 28. Kh4 {[%clk 0:01:49]}  Ng4 {[%clk 0:01:30]} 29. Kg3 {[%clk 0:01:40]}  Nf6 {[%clk 0:01:19]} 30. Rh1 {[%clk 0:01:32]}  Rc7 {[%clk 0:01:06]} 31. Kh4 {[%clk 0:01:21]}  g6 {[%clk 0:01:04]} 32. hxg6+ {[%clk 0:01:20]}  hxg6 {[%clk 0:01:04]} 33. Kg3 {[%clk 0:01:18]}  Nh5+ {[%clk 0:00:59]} 34. Kg2 {[%clk 0:01:17]}  Re7 {[%clk 0:00:56]} 35. Nb3 {[%clk 0:01:11]}  b6 {[%clk 0:00:51]} 36. Rc1 {[%clk 0:01:12]}  Rc7 {[%clk 0:00:47]} 37. Nd2 {[%clk 0:01:12]}  Nf6 {[%clk 0:00:42]} 38. Nc4 {[%clk 0:01:10]}  Nd7 {[%clk 0:00:39]} 39. Rh1 {[%clk 0:00:52]}  b5 {[%clk 0:00:30]} 40. axb5 {[%clk 0:00:44]}  cxb5 {[%clk 0:00:30]} 41. Nd6+ {[%clk 0:00:45]}  Ke6 {[%clk 0:00:27]} 42. Nxb5 {[%clk 0:00:45]}  Rc2 {[%clk 0:00:26]} 43. Rb1 {[%clk 0:00:39]}  Nb6 {[%clk 0:00:22]} 44. Na3 {[%clk 0:00:37]}  Rd2 {[%clk 0:00:20]} 45. b4 {[%clk 0:00:35]}  axb4 {[%clk 0:00:19]} 46. Rxb4 {[%clk 0:00:35]}  Nd5 {[%clk 0:00:18]} 47. Rb3 {[%clk 0:00:26]}  Kf6 {[%clk 0:00:13]} 48. Nc4 {[%clk 0:00:24]}  Ra2 {[%clk 0:00:09]} 49. Nb6 {[%clk 0:00:22]}  Nxb6 {[%clk 0:00:08]} 50. Rxb6+ {[%clk 0:00:23]}  Kg7 {[%clk 0:00:06]} 51. Kg3 {[%clk 0:00:24]}  Kh6 {[%clk 0:00:06]} 52. Rb4 {[%clk 0:00:19]}  Rc2 {[%clk 0:00:06]} 53. d5 {[%clk 0:00:19]}  Rd2 {[%clk 0:00:06]} 54. Rd4 {[%clk 0:00:20]}  Rxd4 {[%clk 0:00:05]} 55. exd4 {[%clk 0:00:21]}  Kg7 {[%clk 0:00:05]} 56. Kh4 {[%clk 0:00:21]}  Kf6 {[%clk 0:00:05]} 57. d6 {[%clk 0:00:20]}  Ke6 {[%clk 0:00:05]} 58. Kg5 {[%clk 0:00:21]}  Kxd6 {[%clk 0:00:06]} 59. Kxg6 {[%clk 0:00:22]}  Kd5 {[%clk 0:00:06]} 60. Kxf5 {[%clk 0:00:22]}  Kxd4 {[%clk 0:00:07]} 61. Ke6 {[%clk 0:00:19]}  Kd3 {[%clk 0:00:07]} 62. Ke5 {[%clk 0:00:19]}  Ke2 {[%clk 0:00:01]} 63. Kxe4 {[%clk 0:00:19]}  Kxf2 {[%clk 0:00:02]} 64. f5 {[%clk 0:00:20]}  Kg3 {[%clk 0:00:03]} 65. f6 {[%clk 0:00:21]}  Kg4 {[%clk 0:00:03]} 66. f7 {[%clk 0:00:22]}  Kg5 {[%clk 0:00:04]} 67. f8=Q {[%clk 0:00:22]}  Kg6 {[%clk 0:00:04]} 68. Qf5+ {[%clk 0:00:20]}  Kg7 {[%clk 0:00:04]} 69. Ke5 {[%clk 0:00:19]}  Kh8 {[%clk 0:00:04]} 70. Qg5 {[%clk 0:00:18]}  Kh7 {[%clk 0:00:04]} 71. Kf6 {[%clk 0:00:18]} 1-0


[Site "https://www.chess.com"]